[Event "Live Chess"]
[Site "Chess.com"]
[Date "2010.12.09"]
[Round "-"]
[White "hipposcottimus"]
[Black "mr_Ralf"]
[Result "0-1"]
[CurrentPosition "rnk2b1r/p1p1nQ1p/6p1/4q1B1/4P3/2N5/PPP3PP/3R1RK1 w - -"]
[Timezone "UTC"]
[ECO "C42"]
[ECOUrl "https://www.chess.com/openings/Petrovs-Defense-Urusov-Gambit"]
[UTCDate "2010.12.09"]
[UTCTime "21:53:51"]
[WhiteElo "1660"]
[BlackElo "1471"]
[TimeControl "60"]
[Termination "mr_Ralf won on time"]
[StartTime "21:53:51"]
[EndDate "2010.12.09"]
[EndTime "21:55:35"]
[Link "https://www.chess.com/game/live/75706479"]

1. e4 {[%clk 0:01:00]} 1... e5 {[%clk 0:01:00]} 2. Nf3 {[%clk 0:00:58.5]} 2... Nf6 {[%clk 0:00:57.8]} 3. Bc4 {[%clk 0:00:54.5]} 3... d6 {[%clk 0:00:57.1]} 4. d4 {[%clk 0:00:52.9]} 4... exd4 {[%clk 0:00:54.2]} 5. e5 {[%clk 0:00:50]} 5... dxe5 {[%clk 0:00:53]} 6. Nxe5 {[%clk 0:00:48.6]} 6... Be6 {[%clk 0:00:51.9]} 7. Qf3 {[%clk 0:00:43.8]} 7... Bxc4 {[%clk 0:00:49.7]} 8. Nxc4 {[%clk 0:00:43.6]} 8... Qe7+ {[%clk 0:00:47.7]} 9. Ne3 {[%clk 0:00:30.4]} 9... dxe3 {[%clk 0:00:45.8]} 10. fxe3 {[%clk 0:00:30.1]} 10... Qe6 {[%clk 0:00:44.5]} 11. Qxb7 {[%clk 0:00:28.6]} 11... Qc6 {[%clk 0:00:41]} 12. Qc8+ {[%clk 0:00:24.7]} 12... Ke7 {[%clk 0:00:40.3]} 13. O-O {[%clk 0:00:22.3]} 13... Nd5 {[%clk 0:00:38.6]} 14. Qf5 {[%clk 0:00:13.7]} 14... g6 {[%clk 0:00:34]} 15. Qxf7+ {[%clk 0:00:12.4]} 15... Kd8 {[%clk 0:00:30.6]} 16. e4 {[%clk 0:00:08]} 16... Ne7 {[%clk 0:00:28.3]} 17. Bg5 {[%clk 0:00:06.7]} 17... Qd6 {[%clk 0:00:26.2]} 18. Nc3 {[%clk 0:00:02.3]} 18... Kc8 {[%clk 0:00:25.6]} 19. Rad1 {[%clk 0:00:00.8]} 19... Qe5 {[%clk 0:00:25]} 0-1

[Event "Live Chess"]
[Site "Chess.com"]
[Date "2010.12.09"]
[Round "-"]
[White "mr_Ralf"]
[Black "hipposcottimus"]
[Result "0-1"]
[CurrentPosition "5rk1/3N2pp/2p1n3/1b1p1p2/3P4/4P1PB/3K1P1P/1R6 w - -"]
[Timezone "UTC"]
[ECO "A10"]
[ECOUrl "https://www.chess.com/openings/English-Opening-Jaenisch-Gambit"]
[UTCDate "2010.12.09"]
[UTCTime "21:51:21"]
[WhiteElo "1471"]
[BlackElo "1660"]
[TimeControl "60"]
[Termination "hipposcottimus won on time"]
[StartTime "21:51:21"]
[EndDate "2010.12.09"]
[EndTime "21:53:30"]
[Link "https://www.chess.com/game/live/75705804"]

1. c4 {[%clk 0:01:00]} 1... b5 {[%clk 0:01:00]} 2. Nc3 {[%clk 0:00:59.6]} 2... b4 {[%clk 0:00:58.7]} 3. Nd5 {[%clk 0:00:56.7]} 3... e6 {[%clk 0:00:57.5]} 4. Ne3 {[%clk 0:00:53.2]} 4... d5 {[%clk 0:00:57.2]} 5. cxd5 {[%clk 0:00:51]} 5... exd5 {[%clk 0:00:56.9]} 6. d4 {[%clk 0:00:48.2]} 6... Nf6 {[%clk 0:00:55.6]} 7. Nc2 {[%clk 0:00:47.5]} 7... a5 {[%clk 0:00:51.1]} 8. a3 {[%clk 0:00:46.4]} 8... c6 {[%clk 0:00:45.7]} 9. axb4 {[%clk 0:00:45.3]} 9... Be7 {[%clk 0:00:36.3]} 10. bxa5 {[%clk 0:00:42.4]} 10... Rxa5 {[%clk 0:00:35.9]} 11. Rxa5 {[%clk 0:00:40.5]} 11... Qxa5+ {[%clk 0:00:35.6]} 12. Bd2 {[%clk 0:00:40.5]} 12... Bb4 {[%clk 0:00:35.1]} 13. Nf3 {[%clk 0:00:34.4]} 13... Bxd2+ {[%clk 0:00:33.6]} 14. Qxd2 {[%clk 0:00:31.5]} 14... Qb5 {[%clk 0:00:26.6]} 15. b4 {[%clk 0:00:27.9]} 15... O-O {[%clk 0:00:24.6]} 16. g3 {[%clk 0:00:26.7]} 16... Ne4 {[%clk 0:00:23.4]} 17. Qd3 {[%clk 0:00:22.5]} 17... Qa4 {[%clk 0:00:19.2]} 18. Bg2 {[%clk 0:00:19]} 18... Ba6 {[%clk 0:00:17.9]} 19. Qd1 {[%clk 0:00:15.1]} 19... Qb5 {[%clk 0:00:14.3]} 20. Na3 {[%clk 0:00:10.1]} 20... Nc3 {[%clk 0:00:13.3]} 21. Nxb5 {[%clk 0:00:08.9]} 21... Nxd1 {[%clk 0:00:12.7]} 22. Kxd1 {[%clk 0:00:08.6]} 22... Bxb5 {[%clk 0:00:12]} 23. Bh3 {[%clk 0:00:06.6]} 23... f5 {[%clk 0:00:10.6]} 24. e3 {[%clk 0:00:05.8]} 24... Na6 {[%clk 0:00:10]} 25. Kd2 {[%clk 0:00:05.2]} 25... Nxb4 {[%clk 0:00:09.2]} 26. Rb1 {[%clk 0:00:04.1]} 26... Na6 {[%clk 0:00:07.2]} 27. Ne5 {[%clk 0:00:00.9]} 27... Nc7 {[%clk 0:00:06.5]} 28. Nd7 {[%clk 0:00:00.1]} 28... Ne6 {[%clk 0:00:05.4]} 0-1

[Event "Live Chess"]
[Site "Chess.com"]
[Date "2010.12.09"]
[Round "-"]
[White "hipposcottimus"]
[Black "mr_Ralf"]
[Result "0-1"]
[CurrentPosition "8/pp2k3/3pp3/2p5/2P5/2K3r1/PP4r1/2R5 w - -"]
[Timezone "UTC"]
[ECO "C41"]
[ECOUrl "https://www.chess.com/openings/Philidor-Defense-3.Bc4"]
[UTCDate "2010.12.09"]
[UTCTime "21:49:14"]
[WhiteElo "1660"]
[BlackElo "1471"]
[TimeControl "60"]
[Termination "mr_Ralf won by checkmate"]
[StartTime "21:49:14"]
[EndDate "2010.12.09"]
[EndTime "21:51:06"]
[Link "https://www.chess.com/game/live/75705183"]

1. e4 {[%clk 0:01:00]} 1... e5 {[%clk 0:01:00]} 2. Nf3 {[%clk 0:00:59.7]} 2... d6 {[%clk 0:00:58.2]} 3. Bc4 {[%clk 0:00:59.2]} 3... h6 {[%clk 0:00:56.4]} 4. d4 {[%clk 0:00:58.9]} 4... exd4 {[%clk 0:00:55]} 5. Nxd4 {[%clk 0:00:56.6]} 5... c5 {[%clk 0:00:54.4]} 6. Nf3 {[%clk 0:00:55.1]} 6... Bg4 {[%clk 0:00:52.4]} 7. Nc3 {[%clk 0:00:54.2]} 7... Nc6 {[%clk 0:00:51.6]} 8. Qd3 {[%clk 0:00:53.3]} 8... Qf6 {[%clk 0:00:48.6]} 9. e5 {[%clk 0:00:51.2]} 9... Nxe5 {[%clk 0:00:46.7]} 10. Nxe5 {[%clk 0:00:48.1]} 10... Qxe5+ {[%clk 0:00:45.6]} 11. Be3 {[%clk 0:00:46.3]} 11... Be7 {[%clk 0:00:38]} 12. O-O {[%clk 0:00:45.9]} 12... Bg5 {[%clk 0:00:37.4]} 13. Rfe1 {[%clk 0:00:43.7]} 13... Bxe3 {[%clk 0:00:36.3]} 14. Rxe3 {[%clk 0:00:43.4]} 14... Qxe3 {[%clk 0:00:28.4]} 15. Qxe3+ {[%clk 0:00:42.8]} 15... Ne7 {[%clk 0:00:28]} 16. Qf4 {[%clk 0:00:40.5]} 16... Be6 {[%clk 0:00:27.2]} 17. Nd5 {[%clk 0:00:39]} 17... O-O {[%clk 0:00:26.5]} 18. Nxe7+ {[%clk 0:00:37.2]} 18... Kh8 {[%clk 0:00:25.5]} 19. Bxe6 {[%clk 0:00:34.2]} 19... fxe6 {[%clk 0:00:24.1]} 20. Qg4 {[%clk 0:00:33.8]} 20... Rf6 {[%clk 0:00:21.6]} 21. Qxg7+ {[%clk 0:00:32.2]} 21... Kxg7 {[%clk 0:00:19.3]} 22. f3 {[%clk 0:00:31.7]} 22... Kf7 {[%clk 0:00:16.4]} 23. g4 {[%clk 0:00:31.3]} 23... Kxe7 {[%clk 0:00:15]} 24. Rd1 {[%clk 0:00:31.1]} 24... Rxf3 {[%clk 0:00:14]} 25. Rc1 {[%clk 0:00:30.9]} 25... Rf4 {[%clk 0:00:13.3]} 26. h3 {[%clk 0:00:29.2]} 26... Rg8 {[%clk 0:00:10.3]} 27. Kg2 {[%clk 0:00:28.5]} 27... h5 {[%clk 0:00:09.6]} 28. Kg3 {[%clk 0:00:27.6]} 28... Rf6 {[%clk 0:00:07.7]} 29. c4 {[%clk 0:00:24.3]} 29... hxg4 {[%clk 0:00:06.7]} 30. hxg4 {[%clk 0:00:23.9]} 30... Rfg6 {[%clk 0:00:06.1]} 31. Kf3 {[%clk 0:00:22.4]} 31... Rxg4 {[%clk 0:00:06.1]} 32. Ke2 {[%clk 0:00:22.2]} 32... Rg3 {[%clk 0:00:05.8]} 33. Kd2 {[%clk 0:00:20.8]} 33... Rg2+ {[%clk 0:00:05.8]} 34. Kc3 {[%clk 0:00:20.4]} 34... R8g3# {[%clk 0:00:04.6]} 0-1

[Event "Live Chess"]
[Site "Chess.com"]
[Date "2010.12.09"]
[Round "-"]
[White "hipposcottimus"]
[Black "lipton131313"]
[Result "1-0"]
[CurrentPosition "8/pr6/6p1/1r2n1P1/8/1P1k4/P7/1K1R4 b - -"]
[Timezone "UTC"]
[ECO "C41"]
[ECOUrl "https://www.chess.com/openings/Philidor-Defense-3.Bc4"]
[UTCDate "2010.12.09"]
[UTCTime "21:46:30"]
[WhiteElo "1660"]
[BlackElo "1720"]
[TimeControl "60"]
[Termination "hipposcottimus won on time"]
[StartTime "21:46:30"]
[EndDate "2010.12.09"]
[EndTime "21:48:35"]
[Link "https://www.chess.com/game/live/75704444"]

1. e4 {[%clk 0:01:00]} 1... e5 {[%clk 0:01:00]} 2. Nf3 {[%clk 0:00:58.1]} 2... d6 {[%clk 0:01:00]} 3. Bc4 {[%clk 0:00:57.7]} 3... c6 {[%clk 0:01:00]} 4. d4 {[%clk 0:00:57.4]} 4... f5 {[%clk 0:01:00]} 5. dxe5 {[%clk 0:00:55.7]} 5... dxe5 {[%clk 0:00:58.2]} 6. Nxe5 {[%clk 0:00:52.9]} 6... Qxd1+ {[%clk 0:00:56.4]} 7. Kxd1 {[%clk 0:00:51.3]} 7... Nf6 {[%clk 0:00:48.8]} 8. Bg5 {[%clk 0:00:49]} 8... Be7 {[%clk 0:00:47]} 9. Bf7+ {[%clk 0:00:43.9]} 9... Kf8 {[%clk 0:00:44.4]} 10. Bxf6 {[%clk 0:00:43.3]} 10... Bxf6 {[%clk 0:00:43.2]} 11. f4 {[%clk 0:00:42.4]} 11... Bxe5 {[%clk 0:00:41.6]} 12. fxe5 {[%clk 0:00:37.9]} 12... Kxf7 {[%clk 0:00:41]} 13. exf5 {[%clk 0:00:37.2]} 13... Bxf5 {[%clk 0:00:39.9]} 14. Nc3 {[%clk 0:00:36.8]} 14... g6 {[%clk 0:00:38.7]} 15. Kd2 {[%clk 0:00:36.6]} 15... Nd7 {[%clk 0:00:37.1]} 16. Raf1 {[%clk 0:00:36.4]} 16... Ke6 {[%clk 0:00:34.4]} 17. Kc1 {[%clk 0:00:33.7]} 17... Ke7 {[%clk 0:00:30]} 18. Rhg1 {[%clk 0:00:33.4]} 18... Be6 {[%clk 0:00:28.6]} 19. g4 {[%clk 0:00:33.1]} 19... Bd5 {[%clk 0:00:27.8]} 20. Re1 {[%clk 0:00:32.7]} 20... Rhe8 {[%clk 0:00:25.6]} 21. Nxd5+ {[%clk 0:00:31.3]} 21... cxd5 {[%clk 0:00:24.2]} 22. h3 {[%clk 0:00:30.8]} 22... Nb6 {[%clk 0:00:23.7]} 23. h4 {[%clk 0:00:30.2]} 23... Ke6 {[%clk 0:00:22.8]} 24. h5 {[%clk 0:00:29.7]} 24... Nc4 {[%clk 0:00:22]} 25. hxg6 {[%clk 0:00:28.7]} 25... hxg6 {[%clk 0:00:20.6]} 26. Kb1 {[%clk 0:00:28.3]} 26... Nxe5 {[%clk 0:00:18.8]} 27. Re2 {[%clk 0:00:24.8]} 27... Kd6 {[%clk 0:00:18.2]} 28. Rge1 {[%clk 0:00:24]} 28... Re7 {[%clk 0:00:17]} 29. Rd2 {[%clk 0:00:23.5]} 29... Rd8 {[%clk 0:00:14.6]} 30. Red1 {[%clk 0:00:23.2]} 30... Kc6 {[%clk 0:00:13.7]} 31. c4 {[%clk 0:00:22.6]} 31... Red7 {[%clk 0:00:12.7]} 32. cxd5+ {[%clk 0:00:20.8]} 32... Rxd5 {[%clk 0:00:12.7]} 33. Rc1+ {[%clk 0:00:20.6]} 33... Kd6 {[%clk 0:00:11.8]} 34. Rdc2 {[%clk 0:00:20.2]} 34... Ke6 {[%clk 0:00:10.7]} 35. Rc7 {[%clk 0:00:19.9]} 35... R8d7 {[%clk 0:00:10.1]} 36. Rxb7 {[%clk 0:00:19.6]} 36... Rxb7 {[%clk 0:00:07.5]} 37. Re1 {[%clk 0:00:18.6]} 37... Rdb5 {[%clk 0:00:06.4]} 38. b3 {[%clk 0:00:17.9]} 38... Kd5 {[%clk 0:00:05.1]} 39. Rg1 {[%clk 0:00:17]} 39... Kd4 {[%clk 0:00:03.8]} 40. g5 {[%clk 0:00:15.9]} 40... Kc3 {[%clk 0:00:02.6]} 41. Rc1+ {[%clk 0:00:15.3]} 41... Kd3 {[%clk 0:00:01.4]} 42. Rd1+ {[%clk 0:00:14.8]} 1-0

[Event "Live Chess"]
[Site "Chess.com"]
[Date "2010.12.09"]
[Round "-"]
[White "Valhery"]
[Black "hipposcottimus"]
[Result "1-0"]
[CurrentPosition "8/6pp/P3k2n/4p1q1/1B4bN/3P2Q1/5PPP/R4RK1 b - -"]
[Timezone "UTC"]
[ECO "A10"]
[ECOUrl "https://www.chess.com/openings/English-Opening-Jaenisch-Gambit"]
[UTCDate "2010.12.09"]
[UTCTime "19:43:29"]
[WhiteElo "1391"]
[BlackElo "1432"]
[TimeControl "600"]
[Termination "Valhery won on time"]
[StartTime "19:43:29"]
[EndDate "2010.12.09"]
[EndTime "20:00:32"]
[Link "https://www.chess.com/game/live/75670753"]

1. c4 {[%clk 0:10:00]} 1... b5 {[%clk 0:10:00]} 2. cxb5 {[%clk 0:09:57.7]} 2... a6 {[%clk 0:09:53.9]} 3. e4 {[%clk 0:09:49.6]} 3... e5 {[%clk 0:09:50.6]} 4. Nf3 {[%clk 0:09:43.4]} 4... f6 {[%clk 0:09:29.7]} 5. Nc3 {[%clk 0:09:11.1]} 5... c5 {[%clk 0:09:18.1]} 6. Be2 {[%clk 0:08:42]} 6... Qb6 {[%clk 0:08:52.5]} 7. Nd5 {[%clk 0:08:39]} 7... Qb7 {[%clk 0:08:45]} 8. bxa6 {[%clk 0:08:26.4]} 8... Nxa6 {[%clk 0:08:41.3]} 9. O-O {[%clk 0:08:24.9]} 9... Nb4 {[%clk 0:08:39.1]} 10. Nxb4 {[%clk 0:07:40.2]} 10... Qxb4 {[%clk 0:08:33.8]} 11. a3 {[%clk 0:07:37.5]} 11... Qxe4 {[%clk 0:08:31.4]} 12. d3 {[%clk 0:07:32.3]} 12... Qg6 {[%clk 0:08:29.1]} 13. Bd2 {[%clk 0:07:24.2]} 13... d6 {[%clk 0:08:25]} 14. a4 {[%clk 0:07:22]} 14... Nh6 {[%clk 0:08:16.5]} 15. a5 {[%clk 0:07:02.2]} 15... Be7 {[%clk 0:07:31.7]} 16. b4 {[%clk 0:06:47.3]} 16... f5 {[%clk 0:07:22.2]} 17. bxc5 {[%clk 0:06:45.3]} 17... f4 {[%clk 0:07:15.7]} 18. cxd6 {[%clk 0:06:36]} 18... Bxd6 {[%clk 0:07:12]} 19. Qc2 {[%clk 0:06:13.3]} 19... Bh3 {[%clk 0:06:59]} 20. Qc6+ {[%clk 0:05:45.1]} 20... Kf7 {[%clk 0:06:52]} 21. Nh4 {[%clk 0:05:30.8]} 21... Qg5 {[%clk 0:06:46.7]} 22. Qxd6 {[%clk 0:05:18.1]} 22... Rhe8 {[%clk 0:06:20.8]} 23. Bf3 {[%clk 0:04:48.1]} 23... Kg8 {[%clk 0:06:12.8]} 24. Bxa8 {[%clk 0:04:40]} 24... Rxa8 {[%clk 0:06:07.6]} 25. Qd5+ {[%clk 0:04:37.9]} 25... Kf8 {[%clk 0:01:40.9]} 26. Bb4+ {[%clk 0:04:11.6]} 26... Ke8 {[%clk 0:01:34.4]} 27. Qxa8+ {[%clk 0:04:06.6]} 27... Kf7 {[%clk 0:01:30.4]} 28. Qf8+ {[%clk 0:03:32.5]} 28... Ke6 {[%clk 0:01:15.2]} 29. a6 {[%clk 0:03:16.2]} 29... f3 {[%clk 0:00:52.6]} 30. Qxf3 {[%clk 0:02:51.1]} 30... Bg4 {[%clk 0:00:31.4]} 31. Qg3 {[%clk 0:02:41.4]} 1-0

[Event "Live Chess"]
[Site "Chess.com"]
[Date "2010.12.09"]
[Round "-"]
[White "hipposcottimus"]
[Black "Irwan123"]
[Result "1-0"]
[CurrentPosition "8/pp4NP/2n1p3/2p5/6kP/8/P1P3P1/6K1 b - -"]
[Timezone "UTC"]
[ECO "A43"]
[ECOUrl "https://www.chess.com/openings/Old-Benoni-Defense-Franco-Benoni-Defense"]
[UTCDate "2010.12.09"]
[UTCTime "06:48:08"]
[WhiteElo "1441"]
[BlackElo "1586"]
[TimeControl "300+5"]
[Termination "hipposcottimus won by resignation"]
[StartTime "06:48:08"]
[EndDate "2010.12.09"]
[EndTime "07:02:16"]
[Link "https://www.chess.com/game/live/75493354"]

1. e4 {[%clk 0:05:00]} 1... e6 {[%clk 0:05:00]} 2. d4 {[%clk 0:05:02]} 2... c5 {[%clk 0:05:02]} 3. d5 {[%clk 0:05:01.4]} 3... exd5 {[%clk 0:04:59.3]} 4. Qxd5 {[%clk 0:04:58.9]} 4... Nf6 {[%clk 0:04:43.2]} 5. Qg5 {[%clk 0:04:42.7]} 5... h6 {[%clk 0:04:42.7]} 6. Qh4 {[%clk 0:04:28.2]} 6... Be7 {[%clk 0:04:44.2]} 7. Bg5 {[%clk 0:04:24.7]} 7... O-O {[%clk 0:04:30.9]} 8. Bxh6 {[%clk 0:03:17.8]} 8... gxh6 {[%clk 0:04:27.7]} 9. Qxh6 {[%clk 0:03:20.2]} 9... Nh7 {[%clk 0:04:27.9]} 10. Bd3 {[%clk 0:03:09]} 10... Bg5 {[%clk 0:04:28.3]} 11. Qh3 {[%clk 0:03:07.9]} 11... d5 {[%clk 0:04:19.3]} 12. Qg3 {[%clk 0:03:03.6]} 12... dxe4 {[%clk 0:04:16.4]} 13. Bc4 {[%clk 0:02:29]} 13... Kh8 {[%clk 0:03:58.4]} 14. Ne2 {[%clk 0:01:33.4]} 14... Nc6 {[%clk 0:03:47.7]} 15. O-O {[%clk 0:01:34.6]} 15... Qf6 {[%clk 0:02:59.9]} 16. f4 {[%clk 0:01:24.7]} 16... Bh6 {[%clk 0:02:52.5]} 17. Nbc3 {[%clk 0:01:06.8]} 17... Be6 {[%clk 0:02:48.9]} 18. Nxe4 {[%clk 0:01:05.7]} 18... Qxb2 {[%clk 0:02:36]} 19. Bxe6 {[%clk 0:00:56.3]} 19... fxe6 {[%clk 0:02:34.5]} 20. Ng5 {[%clk 0:00:42.6]} 20... Nxg5 {[%clk 0:02:32.1]} 21. fxg5 {[%clk 0:00:44.8]} 21... Bg7 {[%clk 0:02:20.9]} 22. Qh4+ {[%clk 0:00:42.3]} 22... Kg8 {[%clk 0:02:22.1]} 23. g6 {[%clk 0:00:35]} 23... Rf6 {[%clk 0:01:58.1]} 24. Qh7+ {[%clk 0:00:21.9]} 24... Kf8 {[%clk 0:02:01.6]} 25. Rxf6+ {[%clk 0:00:26]} 25... Qxf6 {[%clk 0:02:02.7]} 26. Rf1 {[%clk 0:00:29.1]} 26... Ke7 {[%clk 0:01:47.7]} 27. Rxf6 {[%clk 0:00:27]} 27... Kxf6 {[%clk 0:01:50.7]} 28. Nf4 {[%clk 0:00:30.8]} 28... Rh8 {[%clk 0:00:57.7]} 29. Nh5+ {[%clk 0:00:22]} 29... Kg5 {[%clk 0:00:58.6]} 30. h4+ {[%clk 0:00:26.3]} 30... Kg4 {[%clk 0:00:55.8]} 31. Nxg7 {[%clk 0:00:24.1]} 31... Rxh7 {[%clk 0:00:54.3]} 32. gxh7 {[%clk 0:00:28.7]} 1-0

[Event "Live Chess"]
[Site "Chess.com"]
[Date "2010.12.09"]
[Round "-"]
[White "kamyy"]
[Black "hipposcottimus"]
[Result "0-1"]
[CurrentPosition "r4rk1/p5pp/1p6/3P1P2/2b1N3/P3B2P/4RPP1/3Q1K1q w - -"]
[Timezone "UTC"]
[ECO "D10"]
[ECOUrl "https://www.chess.com/openings/Slav-Defense-3.Nc3"]
[UTCDate "2010.12.09"]
[UTCTime "06:36:22"]
[WhiteElo "1492"]
[BlackElo "1428"]
[TimeControl "600"]
[Termination "hipposcottimus won by checkmate"]
[StartTime "06:36:22"]
[EndDate "2010.12.09"]
[EndTime "06:45:39"]
[Link "https://www.chess.com/game/live/75491163"]

1. d4 {[%clk 0:10:00]} 1... d5 {[%clk 0:10:00]} 2. c4 {[%clk 0:09:58.4]} 2... c6 {[%clk 0:09:59.6]} 3. Nc3 {[%clk 0:09:56.1]} 3... Nd7 {[%clk 0:09:58.3]} 4. cxd5 {[%clk 0:09:52.4]} 4... cxd5 {[%clk 0:09:54.3]} 5. Nxd5 {[%clk 0:09:51.4]} 5... e6 {[%clk 0:09:53.5]} 6. Nc3 {[%clk 0:09:47.1]} 6... Ngf6 {[%clk 0:09:53.2]} 7. Bg5 {[%clk 0:09:42.7]} 7... Bb4 {[%clk 0:09:51.1]} 8. a3 {[%clk 0:09:38]} 8... Bxc3+ {[%clk 0:09:48.9]} 9. bxc3 {[%clk 0:09:37.4]} 9... Qc7 {[%clk 0:09:45.4]} 10. Qc2 {[%clk 0:09:33.9]} 10... O-O {[%clk 0:09:42.2]} 11. Nf3 {[%clk 0:09:31.6]} 11... Nd5 {[%clk 0:09:38.6]} 12. Rc1 {[%clk 0:09:20.7]} 12... f6 {[%clk 0:09:36.4]} 13. Bd2 {[%clk 0:09:17.1]} 13... e5 {[%clk 0:09:33]} 14. e4 {[%clk 0:09:14.2]} 14... N5b6 {[%clk 0:09:01.9]} 15. d5 {[%clk 0:09:09.7]} 15... Nc4 {[%clk 0:08:55.7]} 16. Bxc4 {[%clk 0:09:02.4]} 16... Qxc4 {[%clk 0:08:52.4]} 17. Be3 {[%clk 0:08:48.2]} 17... b6 {[%clk 0:08:47.4]} 18. Nd2 {[%clk 0:08:43]} 18... Qc7 {[%clk 0:08:31.1]} 19. O-O {[%clk 0:08:38.9]} 19... Ba6 {[%clk 0:08:20.8]} 20. Rfe1 {[%clk 0:08:31.2]} 20... f5 {[%clk 0:08:17]} 21. exf5 {[%clk 0:08:23.5]} 21... Nf6 {[%clk 0:08:11.9]} 22. c4 {[%clk 0:08:01.8]} 22... e4 {[%clk 0:07:55.8]} 23. Nxe4 {[%clk 0:07:51.8]} 23... Ng4 {[%clk 0:07:27]} 24. h3 {[%clk 0:07:28.9]} 24... Qh2+ {[%clk 0:07:16.1]} 25. Kf1 {[%clk 0:07:23.2]} 25... Ne5 {[%clk 0:06:13.7]} 26. Qd1 {[%clk 0:05:41.3]} 26... Nxc4 {[%clk 0:05:57.9]} 27. Rxc4 {[%clk 0:05:21.9]} 27... Bxc4+ {[%clk 0:05:53.6]} 28. Re2 {[%clk 0:05:07.7]} 28... Qh1# {[%clk 0:05:49.7]} 0-1

[Event "Live Chess"]
[Site "Chess.com"]
[Date "2010.12.09"]
[Round "-"]
[White "hipposcottimus"]
[Black "chenque14"]
[Result "0-1"]
[CurrentPosition "5rk1/p5pp/b1p1p1r1/3p4/4N3/3n2P1/PP4KP/R7 w - -"]
[Timezone "UTC"]
[ECO "C02"]
[ECOUrl "https://www.chess.com/openings/French-Defense-Advance-Variation-3...c5"]
[UTCDate "2010.12.09"]
[UTCTime "04:48:31"]
[WhiteElo "1649"]
[BlackElo "1666"]
[TimeControl "60"]
[Termination "chenque14 won on time"]
[StartTime "04:48:31"]
[EndDate "2010.12.09"]
[EndTime "04:50:31"]
[Link "https://www.chess.com/game/live/75470942"]

1. e4 {[%clk 0:01:00]} 1... e6 {[%clk 0:01:00]} 2. d4 {[%clk 0:00:58.5]} 2... d5 {[%clk 0:00:58.9]} 3. e5 {[%clk 0:00:58]} 3... c5 {[%clk 0:00:57.5]} 4. f4 {[%clk 0:00:56.6]} 4... Nc6 {[%clk 0:00:56.6]} 5. Nf3 {[%clk 0:00:56.4]} 5... cxd4 {[%clk 0:00:55.7]} 6. Bb5 {[%clk 0:00:56.1]} 6... f6 {[%clk 0:00:54]} 7. Bxc6+ {[%clk 0:00:54.1]} 7... bxc6 {[%clk 0:00:52.6]} 8. Qxd4 {[%clk 0:00:53.5]} 8... Qb6 {[%clk 0:00:50]} 9. c3 {[%clk 0:00:45.9]} 9... Bc5 {[%clk 0:00:48]} 10. Qd3 {[%clk 0:00:41]} 10... Ba6 {[%clk 0:00:46.1]} 11. Qc2 {[%clk 0:00:33.7]} 11... Ne7 {[%clk 0:00:42.1]} 12. Nd4 {[%clk 0:00:33.3]} 12... Bxd4 {[%clk 0:00:40.8]} 13. cxd4 {[%clk 0:00:33]} 13... Qxd4 {[%clk 0:00:40.2]} 14. Nc3 {[%clk 0:00:31.6]} 14... Rc8 {[%clk 0:00:36.2]} 15. Qf2 {[%clk 0:00:29.4]} 15... Qxf2+ {[%clk 0:00:30.7]} 16. Kxf2 {[%clk 0:00:29.1]} 16... O-O {[%clk 0:00:29.4]} 17. Re1 {[%clk 0:00:26.6]} 17... fxe5 {[%clk 0:00:28.3]} 18. Rxe5 {[%clk 0:00:23.3]} 18... Rf6 {[%clk 0:00:27]} 19. Kg1 {[%clk 0:00:22.2]} 19... Rcf8 {[%clk 0:00:25.3]} 20. f5 {[%clk 0:00:21.5]} 20... Nxf5 {[%clk 0:00:20.5]} 21. Bg5 {[%clk 0:00:18.3]} 21... Rg6 {[%clk 0:00:18.4]} 22. Bh4 {[%clk 0:00:07.2]} 22... Nxh4 {[%clk 0:00:16.9]} 23. g3 {[%clk 0:00:04]} 23... Nf3+ {[%clk 0:00:14.2]} 24. Kg2 {[%clk 0:00:02]} 24... Nxe5 {[%clk 0:00:13.8]} 25. Ne4 {[%clk 0:00:00.9]} 25... Nd3 {[%clk 0:00:11.9]} 0-1